Cogmind - Beta 12 @@@ ROGUE MODE // 2023.03.16 @ 23:30:34 Player: ArabianSandBoa Result: Destroyed by S-27 Virus with Autogun Performance ------------- Evolutions (3) 1500 Regions Visited (9) 1800 Robots Destroyed (96) 480 Value Destroyed (3910) 3910 Prototype IDs (35) 700 Alien Tech Used (0) 0 Bonus (1909) 1909 TOTAL SCORE: 10299 Bonus ------- High Alert Combat Kills 372 Follower Combat Kills 337 Entered Garrisons 400 Entered DSFs 500 Aligned with FarCom 300 Cogmind --------- Core Integrity 0/700 Matter 154/300 Energy 300/300 System Corruption 0% Temperature Cool (0) Movement Core (1700) Ox33 Location -7/Garrison Parts ------- > --- POWER (1) -------- Enhanced Nuclear Core > --- PROPULSION (2) --- (None) > --- UTILITY (8) ------ Huge Storage Unit Makeshift Trap Scanner Experimental Core Analyzer Improved Armor Integrity Analyzer Advanced Weapon Cycler Makeshift System Shield > --- WEAPON (2) ------- High-powered Shotgun Longsword +1 > --- INVENTORY (25) --- Light Neutrino Core Reinforced Fission Core Armored Treads Experimental Heat Sink Cooling System High-capacity Matter Pod (200) Advanced Weight Redist. System Modified TNC EX Chip 1 EX Chip 1 EX Chip 1 EX Chip 1 EX Chip 2 EX Chip 2 System Restoration Module Improved Trap Extractor (0/6) Trap Reconfigurator Advanced Recalibrator AS-neutralizer No. 17b Shotgun Remote Datajack Peak State ------------ > --- POWER ------------ Reinforced Fission Core > --- PROPULSION ------- Advanced Myomer Leg Advanced Myomer Leg > --- UTILITY ---------- Huge Storage Unit Experimental Core Analyzer Improved Armor Integrity Analyzer Advanced Weapon Cycler Advanced Transmission Jammer Light Armor Plating Light Armor Plating Makeshift System Shield > --- WEAPON ----------- 8R-AWN's Boregun Longsword +1 > --- INVENTORY -------- Enhanced Nuclear Core Light Neutrino Core Experimental Heat Sink High-capacity Matter Pod Advanced Weight Redist. System Makeshift Trap Scanner Modified TNC Improved Target Analyzer EX Chip 1 EX Chip 1 EX Chip 1 EX Chip 1 EX Chip 1 EX Chip 2 EX Chip 2 System Restoration Module Trap Reconfigurator Advanced Recalibrator Thief Drone Bay AS-neutralizer No. 17b Mini Grenade Launcher Remote Datajack Deploy-a-Sentry [Rating: 89] Favorites ----------- Power Reinforced Fission Core Engine Improved Ion Engine Power Core Reinforced Fission Core Propulsion Light Treads Treads Light Treads Leg Advanced Myomer Leg Wheel Wheel Utility Huge Storage Unit Device Advanced Weapon Cycler Storage Huge Storage Unit Processor Experimental Core Analyzer Hackware Hacking Suite Protection Light Armor Plating Weapon 8R-AWN's Boregun Energy Gun Medium Laser Energy Cannon Beam Cannon Ballistic Gun 8R-AWN's Boregun Ballistic Cannon Light Cannon Launcher Mini Grenade Launcher Slashing Weapon Longsword +1 Build | -11 -10 -10 -10 -9 -8 -8 -7 -7 -7 ------- Run | Jun Mat Min Exi Min Mat Gar Fac DSF Gar Slots Evolved 6 | . . . . . 4 . 2 . . Power . | . . . . . . . . . . Propulsion . | . . . . . . . . . . Utility 6 | . . . . . 4 . 2 . . Weapon . | . . . . . . . . . . Parts Attached 104 | . 27 1 28 . 10 12 2 11 13 Power 11 | . 4 . 4 . 2 . . . 1 Engine 5 | . 4 . 1 . . . . . . Core 6 | . . . 3 . 2 . . . 1 Reactor . | . . . . . . . . . . Propulsion 13 | . 8 . 4 . . . . 1 . Treads 6 | . 5 . 1 . . . . . . Leg 3 | . . . 2 . . . . 1 . Wheel 4 | . 3 . 1 . . . . . . Hover . | . . . . . . . . . . Flight . | . . . . . . . . . . Utility 45 | . 7 . 11 . 6 7 2 6 6 Device 24 | . 1 . 8 . 2 4 1 4 4 Storage 5 | . 3 . 2 . . . . . . Processor 6 | . 2 . 1 . 1 . 1 1 . Hackware 5 | . 1 . . . 3 . . . 1 Protection 5 | . . . . . . 3 . 1 1 Artifact . | . . . . . . . . . . Weapon 35 | . 8 1 9 . 2 5 . 4 6 Energy Gun 1 | . 1 . . . . . . . . Energy Cannon 1 | . 1 . . . . . . . . Ballistic Gun 16 | . 3 1 4 . 1 2 . 3 2 Ballistic Cannon 3 | . 2 . 1 . . . . . . Launcher 6 | . 1 . 1 . 1 2 . . 1 Special Weapon . | . . . . . . . . . . Impact Weapon . | . . . . . . . . . . Slashing Weapon 8 | . . . 3 . . 1 . 1 3 Piercing Weapon . | . . . . . . . . . . Special Melee Weapon . | . . . . . . . . . . Unidentified Prototypes 9 | . . . 7 . 2 . . . . Parts Lost 21 | . 7 1 . . 1 1 . 5 6 Power 2 | . 2 . . . . . . . . Propulsion 6 | . 3 . . . . . . 1 2 Utility 7 | . . . . . 1 . . 3 3 Weapon 6 | . 2 1 . . . 1 . 1 1 Highest Loss Streak 3 | . 3 1 . . 1 1 . 2 3 To Critical Strikes . | . . . . . . . . . . Average Slot Usage (%) 96 | . 98 100 92 100 99 95 92 96 97 Engine 7 | . 13 14 6 . . . . . . Core 4 | . . . 6 14 9 9 7 7 7 Treads 13 | . 20 28 12 . . . . . . Leg 10 | . 5 . 14 28 18 18 15 14 14 Device 5 | . 1 . 3 . 11 13 15 15 16 Storage 11 | . 14 14 12 14 9 9 7 7 7 Processor 6 | . 3 . 3 14 9 9 7 20 22 Hackware 9 | . 8 14 4 . 24 11 7 7 11 Protection 1 | . . . . . . 10 15 8 1 Energy Gun 2 | . 7 . . . . . . . . Energy Cannon 1 | . 3 . . . . . . . . Ballistic Gun 11 | . 8 12 12 28 16 12 7 8 7 Ballistic Cannon 5 | . 9 15 4 . . . . . . Slashing Weapon 2 | . . . 6 . . 1 7 4 4 Naked Turns . | . . . . . . . . . . Heaviest Build 122 | 11 93 93 113 113 115 122 118 118 121 Greatest Support 60 | 20 40 40 60 60 60 60 60 60 48 Greatest Overweight (x) 6 | . 5 2 5 1 1 2 1 6 2 Average Overweight (x) 1 | . 1 2 1 1 1 1 1 2 2 Largest Inventory Capacity 25 | . 25 25 25 25 25 25 25 25 25 Average Capacity 23 | . 21 25 21 25 25 25 25 25 25 Most Carried 25 | . 15 19 25 25 25 25 23 25 24 Average Carried 17 | . 10 16 18 25 23 24 22 23 22 Final Capacity 25 | 8 25 25 25 25 25 25 25 25 25 Final Carried 25 | 6 15 19 25 25 25 24 22 23 21 Class Distribution -------------------- 63% | Mutant 31% | Scavenger-Mutant 5% | Hacker-Mutant Dominant Class ---------------- Mutant | -10/Materials Mutant | -10/Mines Mutant | -10/Exiles Mutant | -9/Mines Hacker-Mutant | -8/Materials Scavenger-Mutant | -8/Garrison Scavenger-Mutant | -7/Factory Scavenger-Mutant | -7/DSF Scavenger-Mutant | -7/Garrison Resources | -11 -10 -10 -10 -9 -8 -8 -7 -7 -7 ----------- Run | Jun Mat Min Exi Min Mat Gar Fac DSF Gar Matter Collected 3869 | 168 616 305 1001 20 431 959 . 161 208 Remotely . | . . . . . . . . . . Salvage Created 3619 | . 1051 44 455 . 491 1049 . 266 263 Parts 243 | . 60 4 63 . 32 57 . 13 14 Haulers Intercepted 3 | . 2 . . . 1 . . . . Recyclers Shooed 2 | . . . . . 2 . . . . Parts Field Recycled . | . . . . . . . . . . Retrieved Matter . | . . . . . . . . . . Parts Self-Destructed . | . . . . . . . . . . Prevented . | . . . . . . . . . . Kills | -11 -10 -10 -10 -9 -8 -8 -7 -7 -7 ------- Run | Jun Mat Min Exi Min Mat Gar Fac DSF Gar Combat Hostiles Destroyed 71 | . 24 3 4 . 6 17 . 7 10 Melee 12 | . . . 1 . . 2 . 5 4 Guns 44 | . 20 2 . . 6 11 . 2 3 Cannons 5 | . 4 1 . . . . . . . AOE 10 | . . . 3 . . 4 . . 3 Classes Destroyed 17 | . 7 . 3 . 3 2 . . 2 Worker 3 | . 3 . . . . . . . . Builder 3 | . 2 . . . 1 . . . . Hauler 3 | . 2 . . . 1 . . . . Recycler 2 | . . . . . 2 . . . . Carrier 1 | . . . . . . 1 . . . Operator 2 | . 2 . . . . . . . . Turret 1 | . . . 1 . . . . . . Watcher 3 | . 3 . . . . . . . . Swarmer 26 | . 6 3 . . 3 4 . 3 7 Grunt 29 | . 18 . . . . 8 . 2 1 Duelist 1 | . . . . . . . . . 1 Sentry 5 | . . . . . 1 4 . . . Specialist 4 | . . . . . 2 . . 2 . Hunter 1 | . . . . . . . . . 1 Programmer 1 | . . . . . . 1 . . . Zionite 8 | . . . 8 . . . . . . Assembled 3 | . . . 3 . . . . . . Best Kill Streak 6 | . 6 3 5 . 4 4 . 3 3 Combat Bots Only 4 | . 4 3 3 . 3 4 . 3 3 Max Kills in Single Turn 2 | . 2 1 2 . 1 2 . 1 2 Gunslinging . | . . . . . . . . . . Exploded 2 | . . . 2 . . 2 . . 2 Melee 1 | . . . 1 . . 1 . 1 1 Uniques/NPCs Destroyed 4 | . . . 4 . . . . . . 8R-AWN (-10/Exiles) EX-HEX (-10/Exiles) EX-BIN (-10/Exiles) EX-DEC (-10/Exiles) Combat | -11 -10 -10 -10 -9 -8 -8 -7 -7 -7 -------- Run | Jun Mat Min Exi Min Mat Gar Fac DSF Gar Damage Taken 4327 | . 1264 127 73 . 343 627 . 1254 639 Core 1120 | . 190 13 12 . 59 135 . 533 178 Absorbed by Shields . | . . . . . . . . . . Core Remaining (%) 59 | 100 . . . 14 . 64 . . . Volleys Fired 295 | . 116 8 36 . 20 85 . 17 13 Largest 2 | . 2 2 2 . 2 2 . 1 2 Hottest 100 | . 100 70 60 . 60 60 . 30 48 Shots Fired 507 | . 228 14 60 1 40 128 . 17 19 Gun 442 | . 180 6 56 1 40 125 . 17 17 Cannon 56 | . 47 8 1 . . . . . . Launcher 9 | . 1 . 3 . . 3 . . 2 Special . | . . . . . . . . . . Kinetic 371 | . 100 14 57 1 40 125 . 17 17 Thermal 127 | . 127 . . . . . . . . Explosive 9 | . 1 . 3 . . 3 . . 2 Electromagnetic . | . . . . . . . . . . Robot Hit Streak 30 | . 30 2 3 . 6 9 . 6 5 Robot Miss Streak 8 | . 4 4 8 . 5 5 . 4 5 Penetration Max 1 | . . . 1 . 1 1 . . . Secondary Targets 4 | . 3 . . . . 1 . . . Max Gunslinging Chain 1 | . 1 . . . . 1 . . . Shots Hit Robots 278 | . 146 5 29 . 18 36 . 21 23 Core Hits 155 | . 58 4 26 . 10 27 . 14 16 Critical Kills 22 | . . . 6 . 4 10 . 1 1 Critical Parts Destroyed 18 | . 1 . 7 . 1 7 . 2 . Critical Strikes 52 | . 9 . 13 . 6 18 . 5 1 Burn 7 | . 7 . . . . . . . . Destroy 41 | . 1 . 13 . 6 17 . 3 1 Blast 1 | . 1 . . . . . . . . Sever 3 | . . . . . . 1 . 2 . Melee Attacks 46 | . . . 8 . . 7 . 11 20 Impact . | . . . . . . . . . . Slashing 46 | . . . 8 . . 7 . 11 20 Piercing . | . . . . . . . . . . Sneak Attacks 2 | . . . 2 . . . . . . Combat Hostiles . | . . . . . . . . . . Follow-up Attacks . | . . . . . . . . . . Damage Inflicted 6382 | . 2044 65 1192 . 351 1262 . 542 926 Guns 3541 | . 1515 25 560 . 351 693 . 186 211 Cannons 529 | . 489 40 . . . . . . . Explosions 741 | . 29 . 209 . . 289 . . 214 Melee 1560 | . . . 423 . . 280 . 356 501 Ramming 11 | . 11 . . . . . . . . Kinetic 2864 | . 798 65 560 . 351 693 . 186 211 Thermal 1206 | . 1206 . . . . . . . . Explosive 741 | . 29 . 209 . . 289 . . 214 Electromagnetic . | . . . . . . . . . . Impact . | . . . . . . . . . . Slashing 1560 | . . . 423 . . 280 . 356 501 Piercing . | . . . . . . . . . . Highest Corruption 8 | . 8 8 8 8 . . . . . Average Corruption 7 | . 5 8 8 8 . . . . . Corruption Purged . | . . . . . . . . . . Corruption Blocked . | . . . . . . . . . . Effects 199 | . 76 39 76 8 . . . . . Message Errors 51 | . 17 12 20 2 . . . . . Matter Fused 44 | . 13 10 19 2 . . . . . Heat Flow Errors 21 | . 10 . 11 . . . . . . Energy Discharges 25 | . 7 6 11 1 . . . . . Parts Fused 4 | . 1 1 2 . . . . . . Data Loss (minor) 25 | . 11 4 8 2 . . . . . Data Loss (major) 9 | . 7 1 1 . . . . . . Misfires 5 | . 2 . 2 1 . . . . . Alerts 9 | . 6 3 . . . . . . . Weapon Failures 6 | . 2 2 2 . . . . . . Overload Shots . | . . . . . . . . . . Overflow Damage 135 | . 10 . 3 . . 90 . . 32 Projectiles 10 | . 10 . . . . . . . . Explosions 93 | . . . 3 . . 90 . . . Melee 32 | . . . . . . . . . 32 Knockbacks 4 | . 2 2 . . . . . . . Impact . | . . . . . . . . . . Kinetic 3 | . 2 1 . . . . . . . Secondary 1 | . . 1 . . . . . . . Self-Inflicted Damage 29 | . . . . . . 29 . . . Shots 1 | . . . . . . 1 . . . Rammed 1 | . 1 . . . . . . . . Targets Rammed 1 | . 1 . . . . . . . . Kicked . | . . . . . . . . . . Crushed . | . . . . . . . . . . Highest Temperature 2231 | . 372 16 278 6 44 244 . 2231 12 Average Temperature 115 | . 95 11 93 4 7 44 . 581 5 Received Heat Transfer 1098 | . 612 . . . 18 270 . 189 9 Effects 28 | . 2 . 1 . . . . 25 . Shutdowns 5 | . . . . . . . . 5 . Energy Bleed 4 | . 1 . . . . . . 3 . Interference 3 | . 1 . 1 . . . . 1 . Matter Decay 3 | . . . . . . . . 3 . Short Circuit 3 | . . . . . . . . 3 . Damage (minor) 4 | . . . . . . . . 4 . Damage (major) 2 | . . . . . . . . 2 . Damage (core) 4 | . . . . . . . . 4 . Siege Activations . | . . . . . . . . . . Robots Corrupted . | . . . . . . . . . . Combat Hostiles . | . . . . . . . . . . Parts Fried . | . . . . . . . . . . Impact Corruptions . | . . . . . . . . . . Robots Melted . | . . . . . . . . . . Combat Hostiles . | . . . . . . . . . . Parts Melted 9 | . 9 . . . . . . . . Heat Transferred 3811 | . 3811 . . . . . . . . Parts Sabotaged . | . . . . . . . . . . Parts Stolen . | . . . . . . . . . . Parts Stripped . | . . . . . . . . . . Power Chain Reactions . | . . . . . . . . . . Missiles Intercepted . | . . . . . . . . . . Alert | -11 -10 -10 -10 -9 -8 -8 -7 -7 -7 ------- Run | Jun Mat Min Exi Min Mat Gar Fac DSF Gar Peak Influence 1242 | . 291 85 . 15 354 1242 651 691 816 Initial 651 | . . . . . 5 100 651 455 518 Average 234 | . 45 15 . 14 192 628 651 579 614 Maximum Alert Level 4 | . 1 . . . 1 4 2 2 3 Low Security (%) 65 | . 95 100 . 100 63 10 . . . Level 1 5 | . 4 . . . 36 11 . . . Level 2 18 | . . . . . . 34 100 100 75 Level 3 8 | . . . . . . 37 . . 24 Level 4 . | . . . . . . 5 . . . Level 5 . | . . . . . . . . . . High Security . | . . . . . . . . . . Max Security . | . . . . . . . . . . Sterilizations 1 | . . . . . . . . 1 . Squads Dispatched 12 | . 8 . . . 1 . . 3 . Investigation 6 | . 6 . . . . . . . . Extermination . | . . . . . . . . . . Reinforcement 6 | . 2 . . . 1 . . 3 . Assault . | . . . . . . . . . . Garrison . | . . . . . . . . . . Intercept . | . . . . . . . . . . Searches Triggered . | . . . . . . . . . . Construction Impeded . | . . . . . . . . . . Haulers Reinforced . | . . . . . . . . . . Active Scanning Responses . | . . . . . . . . . . Cargo Convoy Interrupts . | . . . . . . . . . . Stealth | -11 -10 -10 -10 -9 -8 -8 -7 -7 -7 --------- Run | Jun Mat Min Exi Min Mat Gar Fac DSF Gar Distress Signals 2 | . 2 . . . . . . . . Communications Jammed . | . . . . . . . . . . Distress Signals . | . . . . . . . . . . Times Spotted 140 | . 37 3 38 . 12 21 . 14 15 Peak Tracking Total 10 | . 5 3 10 . 4 5 . 4 10 Tactical Retreats 24 | . . . 15 . 4 1 . 3 1 Traps | -11 -10 -10 -10 -9 -8 -8 -7 -7 -7 ------- Run | Jun Mat Min Exi Min Mat Gar Fac DSF Gar Traps Triggered 6 | . 5 . . . . 1 . . . Indirectly . | . . . . . . . . . . Trap Hack Attempts . | . . . . . . . . . . Triggered . | . . . . . . . . . . Disarmed . | . . . . . . . . . . Reprogrammed . | . . . . . . . . . . Reused . | . . . . . . . . . . Traps Extracted . | . . . . . . . . . . Installed 4 | . . 4 . . . . . . . Triggered . | . . . . . . . . . . Exploded 2 | . . . 2 . . . . . . Machines | -11 -10 -10 -10 -9 -8 -8 -7 -7 -7 ---------- Run | Jun Mat Min Exi Min Mat Gar Fac DSF Gar Machines Disabled 29 | . 1 1 11 1 3 11 . . 1 Max in Single Turn 2 | . 1 1 2 1 1 2 . . 1 Garrison Relay 5 | . . . . . . 4 . . 1 Phase Generator 1 | . . . . . . 1 . . . Machines Repaired . | . . . . . . . . . . Machines Sabotaged . | . . . . . . . . . . Overloaded Fab Kills . | . . . . . . . . . . Hacking | -11 -10 -10 -10 -9 -8 -8 -7 -7 -7 --------- Run | Jun Mat Min Exi Min Mat Gar Fac DSF Gar Machines Accessed 17 | . 7 1 1 . 3 3 1 . 1 Terminals 13 | . 6 . . . 2 3 1 . 1 Fabricators . | . . . . . . . . . . Repair Stations . | . . . . . . . . . . Recycling Units 1 | . 1 . . . . . . . . Scanalyzers . | . . . . . . . . . . Garrison Access 1 | . . . . . 1 . . . . Total Hacks 57 | . 32 1 1 . 10 8 2 . 3 Successful 29 | . 16 1 1 . 5 4 1 . 1 Failed 27 | . 15 . . . 5 4 1 . 2 Catastrophic 4 | . 1 . . . 1 2 . . . Database Lockouts 1 | . 1 . . . . . . . . Manual 32 | . 21 . 1 . 7 3 . . . Terminals 50 | . 28 . . . 9 8 2 . 3 Fabricators . | . . . . . . . . . . Repair Stations . | . . . . . . . . . . Recycling Units 4 | . 4 . . . . . . . . Scanalyzers . | . . . . . . . . . . Garrison Access 1 | . . . . . 1 . . . . Terminal Hacks 16 | . 7 1 1 . 2 3 1 . 1 Robot Analysis 2 | . 1 . . . 1 . . . . Prototype ID Bank 2 | . 2 . . . . . . . . Open Door 2 | . . 1 . . . 1 . . . Open DSF 1 | . . . . . . . 1 . . Emergency Access Points 2 | . . . . . . 1 . . 1 Unreport Threat 2 | . 2 . . . . . . . . Registered Components 1 | . 1 . . . . . . . . Registered Prototypes 1 | . 1 . . . . . . . . Zone Layout 1 | . . . . . 1 . . . . Security Stations 1 | . . . . . . 1 . . . EX-Prototype ID Bank 1 | . . . 1 . . . . . . Fabricator Hacks . | . . . . . . . . . . Repair Station Hacks . | . . . . . . . . . . Recycling Unit Hacks 1 | . 1 . . . . . . . . Report Inventory 1 | . 1 . . . . . . . . Scanalyzer . | . . . . . . . . . . Garrison Access Hacks 1 | . . . . . 1 . . . . Unlock Access 1 | . . . . . 1 . . . . Unauthorized Hacks 11 | . 8 . . . 2 1 . . . Terminals 8 | . 5 . . . 2 1 . . . Botnet 8 | . 5 . . . 2 1 . . . Fabricators . | . . . . . . . . . . Repair Stations . | . . . . . . . . . . Recycling Units 3 | . 3 . . . . . . . . Reject 1 | . 1 . . . . . . . . Mask 1 | . 1 . . . . . . . . Tunnel 1 | . 1 . . . . . . . . Scanalyzers . | . . . . . . . . . . Garrison Access . | . . . . . . . . . . Data Cores Recovered . | . . . . . . . . . . Used . | . . . . . . . . . . Hacking Detections 12 | . 7 . . . 2 2 . . 1 Full Trace Events 5 | . 5 . . . . . . . . Feedback Events 1 | . 1 . . . . . . . . Corruption 1 | . 1 . . . . . . . . Feedback Blocked . | . . . . . . . . . . Robot Schematics Acquired . | . . . . . . . . . . Robots Built . | . . . . . . . . . . Authchips . | . . . . . . . . . . Time . | . . . . . . . . . . Total Robot Build Rating . | . . . . . . . . . . Part Schematics Acquired . | . . . . . . . . . . Parts Built . | . . . . . . . . . . Authchips . | . . . . . . . . . . Time . | . . . . . . . . . . Total Part Build Rating . | . . . . . . . . . . Parts Repaired . | . . . . . . . . . . Time . | . . . . . . . . . . Parts Recycled . | . . . . . . . . . . Recycled Matter . | . . . . . . . . . . Retrieved Matter . | . . . . . . . . . . Retrieved Components . | . . . . . . . . . . Parts Scanalyzed . | . . . . . . . . . . Part Schematics Acquired . | . . . . . . . . . . Parts Damaged . | . . . . . . . . . . Bothacking | -11 -10 -10 -10 -9 -8 -8 -7 -7 -7 ------------ Run | Jun Mat Min Exi Min Mat Gar Fac DSF Gar Used RIF Installer . | . . . . . . . . . . Robots Hacked . | . . . . . . . . . . Non-combat . | . . . . . . . . . . Combat . | . . . . . . . . . . Robot Hacks Applied . | . . . . . . . . . . Relay Couplers Released 21 | . . . . . . 16 . . 5 Machine Destruction 21 | . . . . . . 16 . . 5 Fabnet Peak Effective % . | . . . . . . . . . . Robots Rewired 2 | . . . . . . 2 . . . Allies Hacked . | . . . . . . . . . . Hacks Repelled . | . . . . . . . . . . Allies | -11 -10 -10 -10 -9 -8 -8 -7 -7 -7 -------- Run | Jun Mat Min Exi Min Mat Gar Fac DSF Gar Total Allies 2 | . . . . . . 2 . . . Largest Group 2 | . . . . . . 2 . . . Highest-Rated Group 59 | . . . . . . 59 . . . Highest-Rated Ally 39 | . . . . . . 39 . . . Total Orders 4 | . . . 4 . . . . . . ROAM 1 | . . . 1 . . . . . . RETURN 3 | . . . 3 . . . . . . Ally Attacks 120 | . . . 86 . . 15 . 19 . Total Damage 1328 | . . . 473 . . 299 . 556 . Kills 9 | . . . . . . 5 . 4 . Allies Corrupted . | . . . . . . . . . . Allies Melted . | . . . . . . . . . . Turrets Deployed 1 | . . . . . . . . 1 . Intel | -11 -10 -10 -10 -9 -8 -8 -7 -7 -7 ------- Run | Jun Mat Min Exi Min Mat Gar Fac DSF Gar Robot Analysis Total 2 | . 1 . . . 1 . . . . Derelict Logs Recovered 2 | . . 1 . 1 . . . . . Drone Launches 21 | . . . 17 . . . . 4 . Drone Recoveries 18 | . . . 16 . . . . 2 . Exploration | -11 -10 -10 -10 -9 -8 -8 -7 -7 -7 ------------- Run | Jun Mat Min Exi Min Mat Gar Fac DSF Gar Turns Passed 9533 | . 2934 1252 2206 295 461 1271 56 364 694 Spaces Moved 3209 | 1 968 367 761 145 192 491 29 96 159 Core . | . . . . . . . . . . Treads 1298 | . 655 367 276 . . . . . . Legs 1737 | 1 198 . 426 145 192 491 29 96 159 Wheels 174 | . 115 . 59 . . . . . . Hover . | . . . . . . . . . . Flight . | . . . . . . . . . . Fastest Speed 110 | 120 110 320 120 190 190 190 190 190 260 Average Speed 236 | 120 248 320 222 190 190 197 190 261 260 Slowest Speed 540 | 120 320 320 320 190 190 260 190 540 260 Overloaded Moves . | . . . . . . . . . . Propulsion Burnouts . | . . . . . . . . . . Robots Hopped . | . . . . . . . . . . Cave-ins Triggered . | . . . . . . . . . . Exploration Rate (%) 48 | 2 97 74 88 33 16 68 2 84 24 Regions Visited 9 Branch Regions 3 Pre-discovered Areas 3 | . 1 1 . 1 . . . . . Known Exits Taken 2 | . . . . . 1 . 1 . . Unknown Exits Taken 5 | 1 1 1 1 1 . . . . . Scrap Searched 2 | . . 1 . 1 . . . . . Spaces Dug 10 | . . . . . 3 . . 2 5 Terrain Destroyed 196 | . 5 . 18 . 15 134 . 4 20 Melee 7 | . . . . . . . . 2 5 Projectile 41 | . . . 5 . 14 20 . 2 . AOE 142 | . 5 . 13 . . 109 . . 15 Terrain Rammed . | . . . . . . . . . . Walls Destroyed . | . . . . . . . . . . Machines Disabled . | . . . . . . . . . . Actions | -11 -10 -10 -10 -9 -8 -8 -7 -7 -7 --------- Run | Jun Mat Min Exi Min Mat Gar Fac DSF Gar Total 4659 | . 1273 432 1220 165 250 689 30 193 407 Wait 829 | . 128 48 301 21 19 68 . 47 197 Move 3199 | . 967 366 760 144 191 489 28 95 159 Hop . | . . . . . . . . . . Pick Up 85 | . 23 5 39 . 7 2 . 8 1 Fast Attach 7 | . 4 . 1 . 1 1 . . . Attach 43 | . 7 1 11 . 7 2 2 7 6 Detach 15 | . 1 . 9 . 1 1 . . 3 Swap 54 | . 16 . 16 . 2 9 . 4 7 Drop 60 | . 10 . 39 . 2 4 . 4 1 Fire 295 | . 116 8 36 . 20 85 . 17 13 Melee 46 | . . . 8 . . 7 . 11 20 Ram . | . . . . . . . . . . Kick . | . . . . . . . . . . Crush 1 | . 1 . . . . . . . . Escape Stasis 5 | . . . . . . 5 . . . Rewire 16 | . . . . . . 16 . . . Trap 4 | . . 4 . . . . . . . Miscellaneous . | . . . . . . . . . . Route ------- -11/Junkyard -10/Materials (discovered 4 exits: [*Mat x3] / *Min) -10/Mines (discovered 2 exits: [*Mat] / *Exi) -10/Exiles -9/Mines (discovered 2 exits: *Mat x2) -8/Materials (discovered 3 exits: Fac / Sto / Gar) -8/Garrison (discovered 2 exits: *Fac x2) -7/Factory -7/DSF -7/Garrison History --------- Turn | Location | Event 1 | -11/Junkyard | Discovered new exit (range 0) 1 | -11/Junkyard | Entered Materials 318 | -10/Materials | Build established: Mutant 590 | -10/Materials | Discovered new exit (range 14) 615 | -10/Materials | Central database locked down 690 | -10/Materials | Discovered new exit (range 15) 699 | -10/Materials | Core integrity fell below 50% 742 | -10/Materials | Lost 3 parts (2n1w) 1194 | -10/Materials | Discovered new exit (range 12) 1743 | -10/Materials | Discovered new exit (range 15) 2095 | -10/Materials | Build established: Scavenger-Mutant 2483 | -10/Materials | Build established: Mutant 2935 | -10/Materials | Entered Mines 3037 | -10/Mines | Learned location of 2 exits from Materials 3106 | -10/Mines | Core integrity fell below 20% 3148 | -10/Mines | Found a hidden stash of uninstalled traps 3174 | -10/Mines | Discovered new exit (range 8) 3185 | -10/Mines | Learned location of Storage (-8) 3807 | -10/Mines | Found the Drone Emporium 3822 | -10/Mines | Found Prototype Device 4172 | -10/Mines | Deemed a non-threat by the Exiles lab entrance 4172 | -10/Mines | Discovered new exit (range 5) 4187 | -10/Mines | Entered Exiles 4271 | -10/Exiles | Met 8R-AWN 4326 | -10/Exiles | Met EX-HEX 4400 | -10/Exiles | Met EX-BIN 4421 | -10/Exiles | Aligned with FarCom system 4422 | -10/Exiles | Given EX-Vault access code 4463 | -10/Exiles | Opened EX-Vault 4475 | -10/Exiles | Found Modified TNC 4480 | -10/Exiles | Found Trap Reconfigurator 4485 | -10/Exiles | Found Longsword +1 4563 | -10/Exiles | Warned to stay clear of 0b10 Research branches 4647 | -10/Exiles | Met EX-DEC 4964 | -10/Exiles | Identified Thief Drone Bay 5120 | -10/Exiles | Attacked by the Exiles 5264 | -10/Exiles | Found Prototype Ballistic Gun 5266 | -10/Exiles | Identified 8R-AWN's Boregun 5269 | -10/Exiles | Found 8R-AWN's Boregun 5334 | -10/Exiles | Found AS-neutralizer No. 17b 5407 | -10/Exiles | Destroyed 8R-AWN 5590 | -10/Exiles | Destroyed EX-HEX 5668 | -10/Exiles | Destroyed EX-BIN 5671 | -10/Exiles | Destroyed EX-DEC 5695 | -10/Exiles | Found Deploy-a-Sentry 5789 | -10/Exiles | Found Prototype Processor 6377 | -10/Exiles | Discovered new exit (range 10) 6393 | -10/Exiles | Stole four prototypes: Modified TNC, Trap Reconfigurator, Longsword +1, Deploy-a-Sentry 6393 | -10/Exiles | Entered Mines 6400 | -9/Mines | Met a Derelict bent on vengeance 6518 | -9/Mines | Discovered new exit (range 9) 6573 | -9/Mines | Discovered new exit (range 16) 6582 | -9/Mines | Learned location of Zion (-7) 6688 | -9/Mines | Entered Materials 6688 | -8/Materials | Evolved 4 slots: Utility x4 6689 | -8/Materials | Identified exit to Factory 6689 | -8/Materials | Identified exit to Storage 6783 | -8/Materials | Identified Exp. Core Analyzer 6879 | -8/Materials | Identified exit to Garrison 6989 | -8/Materials | Build established: Hacker-Mutant 7149 | -8/Materials | Entered Garrison 7254 | -8/Garrison | Triggered checkpoint 7308 | -8/Garrison | Garrison Relay disabled 7410 | -8/Garrison | Triggered checkpoint 7488 | -8/Garrison | Build established: Scavenger-Mutant 7506 | -8/Garrison | Triggered checkpoint 7540 | -8/Garrison | Learned Factory security intel 7601 | -8/Garrison | Discovered exit to Factory (range 12) 7849 | -8/Garrison | Phase Generator disabled 8012 | -8/Garrison | Attempted to access garrison exit controls, blocked by remote lockdown 8070 | -8/Garrison | Triggered checkpoint 8160 | -8/Garrison | Triggered checkpoint 8300 | -8/Garrison | Discovered exit to Factory (range 9) 8340 | -8/Garrison | Garrison Relay disabled 8420 | -8/Garrison | Entered Factory 8420 | -7/Factory | Evolved 2 slots: Utility x2 8475 | -7/Factory | Identified exit to DSF 8476 | -7/Factory | Entered DSF 8521 | -7/DSF | Additional patrols routed to DSF 8660 | -7/DSF | DAS Turret deployed 8678 | -7/DSF | Sterilization system engaged 8698 | -7/DSF | Ambient heat levels rising (+10) 8713 | -7/DSF | Ambient heat levels rising (+10) 8728 | -7/DSF | Ambient heat levels rising (+10) 8743 | -7/DSF | Ambient heat levels rising (+10) 8758 | -7/DSF | Ambient heat levels rising (+10) 8773 | -7/DSF | Ambient heat levels rising (+10) 8786 | -7/DSF | Discovered new exit (range 14) 8788 | -7/DSF | Ambient heat levels rising (+10) 8803 | -7/DSF | Ambient heat levels rising (+10) 8818 | -7/DSF | Ambient heat levels rising (+10) 8819 | -7/DSF | Core integrity fell below 50% 8833 | -7/DSF | Ambient heat levels rising (+10) 8840 | -7/DSF | Entered Garrison 9044 | -7/Garrison | Triggered checkpoint 9067 | -7/Garrison | Core integrity fell below 20% 9111 | -7/Garrison | Garrison Relay disabled 9272 | -7/Garrison | Triggered checkpoint 9534 | -7/Garrison | Destroyed by S-27 Virus with Autogun Last Messages --------------- 09397_ Acquired 4 matter. 09399_ Acquired 87 matter. 09403_ The unstable cave ceiling collapses. 09403_ VTOL Module crushed. 09404_ The unstable cave ceiling collapses. 09466_ Penetrated by Slug. 09470_ Imp. Target Analyzer destroyed. 09473_ Penetrated by Slug. 09476_ Mni. Grenade Launcher destroyed. 09479_ Destroyed Carbon-fiber Leg. 09479_ Penetrated by Slug. 09481_ H-55 Commando destroyed. 09483_ Acquired 59 matter. 09519_ S-27 Virus destroyed. 09524_ Adv. Myomer Leg destroyed. 09527_ Imp. Carbon-fiber Leg destroyed. 09527_ EX Chip 1 destroyed. 09527_ L-41 Fighter destroyed. 09529_ G-47 Trooper destroyed. 09533_ Destroyed VTOL Module. Map ----- +----------------------------------------------------+ | ???????????#######???????????????????????????????? | | ???????????# #???????????????????????????????? | | ???????????# #???????????????????????????????? | | ???????????# #???????????????????????????????? | | ???????????### #???????????????????????????????? | | ?????????????# #???????????????????????????????? | | ?????????????# #???????????????????????????????? | | ?????????????# #???????????????????????????????? | | ?????????????# #???????????????????????????????? | | ?????????????# #???????????????????????????????? | | ?????????????# #???????????????????????????????? | | ?????????????# #???????????????????????????????? | | ?????????????# #???????????????????????????????? | | ?????????????# #???????????????????????????????? | | ?????????????# #???????????????????????????????? | | ?????????????# #???????????????????????????+???? | | ?????????????# #???????????????????????????????? | | ?????????????# #???????????????????????????????? | | ?????????????# #???????????????????????????????? | | ?????????????# #???????????????????????????????? | | ?????????????# #???????????????????????????????? | | ?????????????# #???????????????????????????????? | | ??????###????# #????????###????????????????????? | | #######T###### **##########;#????????????????????? | | = ; ##???????????????????? | | ! + s @%%;#???????????????????? | | #!!!##### ## #### ####%s##???????????????????? | | ""!""#??# ##^^^"#?# #??#=!;#???????????????????? | | ######??##+## ##?# #??# !##???????????????????+ | | ?????????#??## ### #??# ;#???????????????+???+ | | ?????+??????# ## #??# ##????#??????????????? | | ????????????# ## #??# #??? #??????????????? | | ???+???+## ### = # #/####+"## ###+???????????? | | ??# ^ ?????? | | ???+###+###### * ?????? | | ?????????????# [ ^^ ?????? | | ?????+???????## ####### ## ## ####??????? | | ??????????????#####?????# #? #????#?????????? | | ????????????????????????" ?? ?????????????? | | ????????????????????????" ?? ????????????? | | ????????????????????????" ??? ???????????? | | ????????????????????????" ??? "?????????? | | ????????????????????????# #???? ## #?????????? | | ????????????????????????# ????? #? #?????????? | | ???????????????????????? ?????? ?? ?????????? | | ??????????????+????????? ?????? ??????????????? | | ???????????????????+????# ??????? ??????+??????? | | ????????????????????????## ?????????+???????????? | | ???????+?????????????????????????????????????????? | | ?????????????????????????????????????????????????? | +----------------------------------------------------+ Best States ------------- Heat Dissipation 56 Coolant Potential 50 Energy Generation 19 Energy Capacity 310 Matter Stores 300 Matter Capacity 300 Sight Range 16 Terrain Scan Density 10 Jamming Range 16 Armor Coverage 300 Weapon Cycling 25 Evasion (%) 55 Targeting Accuracy 5 Launcher Accuracy 40 Target Analysis 6 Core Analysis 8 Armor Integrity Analysis 40 Recoil Reduction 2 Offensive Hacking 10 Defensive Hacking 22 Item Schematics ----------------- None Robot Schematics ------------------ None Fabricated ------------ Nothing Alien Tech Used ----------------- None Achievements -------------- None Challenges ------------ None Game ------ Seed EnergyCloakAutohacker Manual? 0 Play Time 01:08:39 Cumulative 484.2 hours Start 2023.03.16 @ 18:58:24 End 2023.03.16 @ 23:30:34 Sessions 1 Manual Loads 0 Difficulty Rogue Special Mode None Game No. 523 Rogue 523 Adventurer 0 Explorer 0 Win Type - Total 1 Types 1/0/0/0/0/0/0/0/0 Lore% 61 Gallery% 82 Achievement% 65 Wizard Run 0 Options --------- ASCII 0 Keyboard 0 Movement Mouse Keybinds 0 Fullscreen 2 Font 24/Proggy Map View 76x50 Tactical HUD 1 Map Filters NONE Filters NONE Steam 1 RUN: 6d12e742-41c8-49fd-b480-090713e4f528